Cogmind - Beta 15 @@@ ROGUE MODE // 2025.05.24 @ 17:58:18 Player: Player Result: Destroyed by L-31 Rogue with Katana Performance ------------- Evolutions (2) 1000 Regions Visited (3) 600 Robots Destroyed (36) 180 Value Destroyed (864) 864 Prototype IDs (1) 20 Alien Tech Used (0) 0 Bonus (0) 0 TOTAL SCORE: 2664 Bonus ------- None Cogmind --------- Core Integrity 0/550 Matter 132/300 Energy 100/100 System Corruption 0% Temperature Cool (0) Movement Core (1350) Ox26 Location -8/Materials Parts ------- > --- POWER (1) -------- (None) > --- PROPULSION (4) --- (None) > --- UTILITY (4) ------ Huge Storage Unit Machine Analyzer > --- WEAPON (2) ------- (None) > --- INVENTORY (25) --- Light Ion Engine Large Storage Unit Structural Scanner Improved Sensor Array Signal Interpreter Improved Terrain Scanner Improved Terrain Scanner Seismic Detector Seismic Detector Power Shielding Propulsion Shielding Propulsion Shielding Improved Weapon Shielding Assault Rifle Heavy Assault Rifle Heavy Assault Rifle Flak Cannon Flak Cannon Flak Cannon Mining Laser Peak State ------------ > --- POWER ------------ Light Nuclear Core > --- PROPULSION ------- Light Treads Aluminum Leg Wheel Compact Wheel > --- UTILITY ---------- Huge Storage Unit Machine Analyzer Seismic Detector Light Armor Plating > --- WEAPON ----------- Flak Cannon Flak Cannon > --- INVENTORY -------- Light Ion Engine Large Storage Unit Structural Scanner Improved Sensor Array Signal Interpreter Improved Terrain Scanner Improved Terrain Scanner Seismic Detector Seismic Detector Power Shielding Propulsion Shielding Propulsion Shielding Improved Weapon Shielding Assault Rifle Heavy Assault Rifle Heavy Assault Rifle Heavy Assault Rifle Flak Cannon Flak Cannon Mining Laser [Rating: 22] Favorites ----------- Power Light Ion Engine Engine Light Ion Engine Power Core Light Nuclear Core Propulsion Light Treads Treads Light Treads Leg Aluminum Leg Wheel Wheel Utility Seismic Detector Device Seismic Detector Storage Huge Storage Unit Processor Machine Analyzer Protection Light Armor Plating Weapon Flak Cannon Energy Gun Medium Laser Ballistic Gun Light Assault Rifle Ballistic Cannon Flak Cannon Special Weapon Mining Laser Build | -11 -10 -9 -8 ------- Run | Yrd Mat Mat Mat Slots Evolved 4 | . . 2 2 Power . | . . . . Propulsion 2 | . . 1 1 Utility 2 | . . 1 1 Weapon . | . . . . Parts Attached 26 | 7 7 7 5 Power 5 | 1 1 2 1 Engine 4 | 1 1 2 . Core 1 | . . . 1 Reactor . | . . . . Propulsion 5 | 2 1 1 1 Treads 2 | 2 . . . Leg 1 | . . 1 . Wheel 2 | . 1 . 1 Hover . | . . . . Flight . | . . . . Utility 7 | 2 2 2 1 Device 2 | 1 1 . . Storage 2 | 1 1 . . Processor 1 | . . 1 . Hackware . | . . . . Protection 2 | . . 1 1 Artifact . | . . . . Weapon 9 | 2 3 2 2 Energy Gun 2 | 1 . . 1 Energy Cannon . | . . . . Ballistic Gun 3 | 1 1 . 1 Ballistic Cannon 2 | . . 2 . Launcher . | . . . . Special Weapon 2 | . 2 . . Impact Weapon . | . . . . Slashing Weapon . | . . . . Piercing Weapon . | . . . . Special Melee Weapon . | . . . . Unidentified Prototypes 1 | . . . 1 Parts Lost 14 | . 1 3 10 Power 4 | . 1 2 1 Propulsion 5 | . . 1 4 Utility 2 | . . . 2 Weapon 3 | . . . 3 Highest Loss Streak 9 | . 1 1 9 To Critical Strikes . | . . . . Average Backups 13 | 2 10 17 19 Power . | 1 1 . . Propulsion . | . . . . Utility 8 | . 7 10 11 Weapon 3 | . 1 6 7 Tool/Special . | . . . . Unused Backups 18 | 1 . 2 15 Power . | . . . . Propulsion . | . . . . Utility 12 | . . 1 11 Weapon 6 | 1 . 1 4 Tool/Special . | . . . . Average Slot Usage (%) 96 | . 98 98 86 Engine 11 | . 13 10 5 Treads 18 | . 21 21 7 Leg 1 | . . . 8 Wheel 8 | . 5 11 12 Device 11 | . 14 11 7 Storage 12 | . 14 11 9 Processor 4 | . . 9 9 Protection 1 | . . 1 7 Energy Gun 2 | . 4 . 1 Ballistic Gun 11 | . 21 3 . Ballistic Cannon 7 | . . 13 13 Special Weapon 2 | . 1 4 1 Peak Build Rating 22 | 7 8 18 22 Average Rating 11 | 6 7 15 18 On Entrance 8 | . 7 8 17 Naked Turns . | . . . . Heaviest Build 101 | 12 87 96 101 Greatest Support 40 | 40 40 10 26 Greatest Overweight (x) 27 | 3 8 9 27 Average Overweight (x) 5 | . 5 8 5 Largest Inventory Capacity 25 | 8 25 25 25 Average Capacity 23 | 7 23 25 25 Most Carried 21 | 6 14 19 21 Average Carried 13 | 2 10 17 19 Final Capacity 25 | 8 25 25 25 Final Carried 20 | 6 14 18 20 Class Distribution -------------------- 88% | Mutant 11% | Scavenger-Mutant Dominant Class ---------------- Mutant | -10/Materials Mutant | -9/Materials Scavenger-Mutant | -8/Materials Resources | -11 -10 -9 -8 ----------- Run | Yrd Mat Mat Mat Matter Collected 850 | 201 242 160 247 Remotely . | . . . . Salvage Created 980 | 154 333 198 295 Parts 72 | 16 22 18 16 Haulers Intercepted . | . . . . Recyclers Shooed 2 | . 1 . 1 Parts Field Recycled . | . . . . Retrieved Matter . | . . . . Parts Self-Destructed . | . . . . Prevented . | . . . . Kills | -11 -10 -9 -8 ------- Run | Yrd Mat Mat Mat Combat Hostiles Destroyed 26 | . 9 8 9 Guns 12 | . 9 . 3 Cannons 14 | . . 8 6 Classes Destroyed 8 | 2 5 1 . Tunneler 4 | 4 . . . Recycler 2 | 1 . . 1 Mechanic 1 | . 1 . . Operator 1 | . 1 . . Watcher 2 | . 1 1 . Swarmer 10 | . 3 3 4 Grunt 12 | . 6 2 4 Sentry 4 | . . 3 1 Best Kill Streak 6 | 2 3 6 6 Combat Bots Only 6 | . 2 6 4 Max Kills in Single Turn 1 | 1 1 1 1 Gunslinging . | . . . . Exploded . | . . . . Melee . | . . . . Uniques/NPCs Destroyed . | . . . . Combat | -11 -10 -9 -8 -------- Run | Yrd Mat Mat Mat Hostile Shots Fired 235 | . 68 65 102 Missed 44 | . 13 15 16 Hits 191 | . 55 50 86 Melee 14 | . . . 14 Projectile 177 | . 55 50 72 Critical Strikes 9 | . 1 1 7 Damage Taken 2638 | . 630 577 1431 Core 769 | . 67 125 577 Absorbed by Shields . | . . . . Regen/Repaired (Parts) 338 | . 300 38 . Core Remaining (%) 80 | 100 73 68 . Volleys Fired 129 | 11 44 31 43 Largest 2 | 2 2 2 2 Hottest 100 | 70 100 100 100 Shots Fired 205 | 22 84 51 48 Gun 124 | 22 80 . 22 Cannon 62 | . . 40 22 Launcher . | . . . . Special 19 | . 4 11 4 Kinetic 138 | 11 55 40 32 Thermal 67 | 11 29 11 16 Explosive . | . . . . Electromagnetic . | . . . . Robot Hit Streak 12 | 3 11 12 6 Robot Miss Streak 12 | 3 2 12 5 Penetration Max . | . . . . Secondary Targets 2 | . 2 . . Max Gunslinging Chain 1 | . 1 . . Shots Hit Robots 133 | 12 56 29 36 Core Hits 87 | 8 25 26 28 Critical Kills 1 | 1 . . . Critical Parts Destroyed . | . . . . Critical Strikes 6 | 2 3 . 1 Burn 5 | 1 3 . 1 Destroy 1 | 1 . . . Melee Attacks . | . . . . Impact . | . . . . Slashing . | . . . . Piercing . | . . . . Sneak Attacks . | . . . . Combat Hostiles . | . . . . Follow-up Attacks . | . . . . Damage Inflicted 1534 | 119 573 353 489 Guns 929 | 119 573 . 237 Cannons 581 | . . 329 252 Explosions . | . . . . Melee . | . . . . Ramming . | . . . . Kinetic 1073 | 69 322 329 353 Thermal 461 | 50 251 24 136 Explosive . | . . . . Electromagnetic . | . . . . Impact . | . . . . Slashing . | . . . . Piercing . | . . . . Highest Corruption . | . . . . Average Corruption . | . . . . Corruption Purged . | . . . . Corruption Blocked . | . . . . Overload Shots . | . . . . Overflow Damage 1 | . . 1 . Projectiles 1 | . . 1 . Explosions . | . . . . Melee . | . . . . Knockbacks 22 | . . 10 12 Impact . | . . . . Kinetic 21 | . . 10 11 Secondary 1 | . . . 1 Self-Inflicted Damage . | . . . . Shots . | . . . . Rammed . | . . . . Targets Rammed . | . . . . Kicked . | . . . . Crushed . | . . . . Highest Temperature 316 | 80 316 42 243 Average Temperature 51 | 33 77 9 72 Received Heat Transfer 1086 | . 327 192 567 Siege Activations . | . . . . Martial Activations . | . . . . Shielding Activations . | . . . . Robots Disrupted . | . . . . Combat Hostiles . | . . . . Robots Corrupted . | . . . . Combat Hostiles . | . . . . Parts Fried . | . . . . Impact Corruptions . | . . . . Robots Melted . | . . . . Combat Hostiles . | . . . . Parts Melted . | . . . . Heat Transferred 1567 | 222 962 50 333 Parts Sabotaged . | . . . . Parts Stolen . | . . . . Parts Stripped . | . . . . Power Chain Reactions . | . . . . Alert | -11 -10 -9 -8 ------- Run | Yrd Mat Mat Mat Maximum Alert Level . | . . . . Low Security (%) 100 | 100 100 100 100 Level 1 . | . . . . Level 2 . | . . . . Level 3 . | . . . . Level 4 . | . . . . Level 5 . | . . . . High Security . | . . . . Max Security . | . . . . Peak Influence 150 | 10 65 116 150 Initial 24 | . . 9 24 Average 22 | 1 12 23 53 Influence Increases 824 | 25 239 242 318 Destroy 0b10 Robot/C 520 | . 180 160 180 Destroy 0b10 Robot/NC 50 | 25 15 5 5 Destroy Leader 114 | . 32 52 30 Successful Hack 35 | . 8 16 11 Disable Machine 15 | . . . 15 Destroy Structure 15 | . 4 9 2 Lose Combat Pursuer 75 | . . . 75 Influence Decreases 740 | 25 217 207 291 Entered New Map 46 | . . 13 33 Time Decay 541 | 25 207 151 158 Lost Part 131 | . 10 21 100 Purge Threat 22 | . . 22 . Squads Dispatched 4 | . 2 1 1 Investigation 2 | . 1 1 . Extermination . | . . . . Reinforcement 2 | . 1 . 1 Assault . | . . . . Garrison . | . . . . Intercept . | . . . . Searches Triggered . | . . . . Construction Impeded . | . . . . Haulers Reinforced . | . . . . Active Scanning Responses . | . . . . Cargo Convoy Interrupts . | . . . . Stealth | -11 -10 -9 -8 --------- Run | Yrd Mat Mat Mat Distress Signals 4 | . 2 1 1 Communications Jammed . | . . . . Distress Signals . | . . . . Times Spotted 46 | . 17 12 17 Peak Tracking Total 6 | . 5 5 6 Tactical Retreats 2 | . . . 2 Traps | -11 -10 -9 -8 ------- Run | Yrd Mat Mat Mat Traps Triggered . | . . . . Indirectly . | . . . . Trap Hack Attempts . | . . . . Triggered . | . . . . Disarmed . | . . . . Reprogrammed . | . . . . Reused . | . . . . Traps Extracted . | . . . . Installed . | . . . . Triggered . | . . . . Machines | -11 -10 -9 -8 ---------- Run | Yrd Mat Mat Mat Machines Disabled 1 | . . . 1 Max in Single Turn 1 | . . . 1 Machines Repaired . | . . . . Machines Dismantled . | . . . . Machines Sabotaged . | . . . . Overloaded Fab Kills . | . . . . Hacking | -11 -10 -9 -8 --------- Run | Yrd Mat Mat Mat Machines Accessed 13 | . 6 6 1 Terminals 11 | . 5 5 1 Fabricators . | . . . . Repair Stations 2 | . 1 1 . Recycling Units . | . . . . Scanalyzers . | . . . . Garrison Access . | . . . . Total Hacks 39 | . 21 15 3 Successful 20 | . 11 7 2 Failed 19 | . 10 8 1 Catastrophic 6 | . 3 2 1 Database Lockouts . | . . . . Manual 25 | . 11 11 3 Terminals 27 | . 12 12 3 Fabricators . | . . . . Repair Stations 12 | . 9 3 . Recycling Units . | . . . . Scanalyzers . | . . . . Garrison Access . | . . . . Terminal Hacks 2 | . . 2 . Branch Access Points 1 | . . 1 . Unreport Threat 1 | . . 1 . Fabricator Hacks . | . . . . Repair Station Hacks 10 | . 8 2 . Scan Component 5 | . 4 1 . Repair 5 | . 4 1 . Recycling Unit Hacks . | . . . . Scanalyzer . | . . . . Garrison Access Hacks . | . . . . Unauthorized Hacks 8 | . 3 3 2 Terminals 8 | . 3 3 2 Botnet 5 | . 2 2 1 Operators 3 | . 1 1 1 Fabricators . | . . . . Repair Stations . | . . . . Recycling Units . | . . . . Scanalyzers . | . . . . Garrison Access . | . . . . Data Cores Recovered . | . . . . Used . | . . . . Hacking Detections 11 | . 5 5 1 Full Trace Events 2 | . 1 1 . Feedback Events . | . . . . Feedback Blocked . | . . . . Robot Schematics Acquired . | . . . . Robots Built . | . . . . Authchips . | . . . . Time . | . . . . Total Robot Build Rating . | . . . . Part Schematics Acquired . | . . . . Parts Built . | . . . . Authchips . | . . . . Time . | . . . . Total Part Build Rating . | . . . . Parts Repaired 5 | . 4 1 . Time 130 | . 104 26 . Parts Recycled . | . . . . Recycled Matter . | . . . . Retrieved Matter . | . . . . Retrieved Components . | . . . . Parts Scanalyzed . | . . . . Part Schematics Acquired . | . . . . Parts Damaged . | . . . . Bothacking | -11 -10 -9 -8 ------------ Run | Yrd Mat Mat Mat Used RIF Installer . | . . . . Robots Hacked . | . . . . Non-combat . | . . . . Combat . | . . . . Robot Hacks Applied . | . . . . Relay Couplers Released . | . . . . Fabnet Peak Effective % . | . . . . Robots Rewired . | . . . . Allies Hacked . | . . . . Hacks Repelled . | . . . . Allies | -11 -10 -9 -8 -------- Run | Yrd Mat Mat Mat Total Allies . | . . . . Largest Group . | . . . . Highest-Rated Group . | . . . . Highest-Rated Ally . | . . . . Total Orders . | . . . . Ally Attacks . | . . . . Total Damage . | . . . . Kills . | . . . . Allies Corrupted . | . . . . Allies Melted . | . . . . Intel | -11 -10 -9 -8 ------- Run | Yrd Mat Mat Mat Active Infowar (turns) 2356 | 102 1073 756 425 Seismic 2309 | 102 1073 756 378 Machine Analysis 1104 | . . 679 425 Robot Analysis Total . | . . . . Derelict Logs Recovered . | . . . . Drone Launches . | . . . . Drone Recoveries . | . . . . Exploration | -11 -10 -9 -8 ------------- Run | Yrd Mat Mat Mat Turns Passed 2434 | 180 1073 756 425 Spaces Moved 805 | 84 335 269 117 Core 19 | 16 . . 3 Treads 220 | 68 152 . . Legs 1 | . . 1 . Wheels 565 | . 183 268 114 Hover . | . . . . Flight . | . . . . Fastest Speed 50 | 50 160 200 135 Average Speed 214 | 157 239 211 192 Slowest Speed 1400 | 200 480 750 1400 Overloaded Moves . | . . . . Propulsion Burnouts . | . . . . Robots Hopped . | . . . . Potential Cave-ins . | . . . . Cave-ins Triggered . | . . . . Exploration Rate (%) 26 | 6 69 21 10 Regions Visited 3 Branch Regions . Pre-discovered Areas . | . . . . Known Exits Taken . | . . . . Unknown Exits Taken 3 | 1 1 1 . Scrap Searched . | . . . . Spaces Dug 16 | . 4 10 2 Terrain Destroyed 16 | . 4 10 2 Melee . | . . . . Projectile 16 | . 4 10 2 AOE . | . . . . Terrain Rammed . | . . . . Walls Destroyed . | . . . . Machines Disabled . | . . . . Actions | -11 -10 -9 -8 --------- Run | Yrd Mat Mat Mat Total 1276 | 109 520 386 261 Wait 264 | . 112 61 91 Move 802 | 83 334 268 117 Hop . | . . . . Pick Up 34 | 7 13 11 3 Fast Attach 13 | 7 3 2 1 Attach 8 | . 2 4 2 Detach . | . . . . Swap 18 | . 8 6 4 Drop 8 | 1 4 3 . Fire 129 | 11 44 31 43 Melee . | . . . . Ram . | . . . . Kick . | . . . . Crush . | . . . . Escape Stasis . | . . . . Rewire . | . . . . Trap . | . . . . Miscellaneous . | . . . . Route ------- -11/Scrapyard -10/Materials (discovered 3 exits: *Mat / [*Min] / [*Sub]) -9/Materials (discovered 3 exits: *Mat / Min x2) -8/Materials History --------- Turn | Location | Event 5 | -11/Scrapyard | Discovered new exit (range 16) 181 | -11/Scrapyard | Entered Materials 309 | -10/Materials | Build established: Mutant 678 | -10/Materials | Repaired Lgt. Treads 680 | -10/Materials | Repaired Lgt. Treads 706 | -10/Materials | Repaired Lgt. Assault Rifle 743 | -10/Materials | Repaired Lgt. Treads 871 | -10/Materials | Discovered new exit (range 11) 1085 | -10/Materials | Discovered new exit (range 6) 1216 | -10/Materials | Discovered new exit (range 14) 1254 | -10/Materials | Entered another Materials area 1254 | -9/Materials | Evolved 2 slots: Propulsion x1, Utility x1 1466 | -9/Materials | Repaired Lgt. Treads 1744 | -9/Materials | Identified exit to Mines 1783 | -9/Materials | Discovered new exit (range 10) 2010 | -9/Materials | Entered another Materials area 2010 | -8/Materials | Evolved 2 slots: Propulsion x1, Utility x1 2415 | -8/Materials | Core integrity fell below 50% 2430 | -8/Materials | Core integrity fell below 20% 2435 | -8/Materials | Destroyed by L-31 Rogue with Katana Last Messages --------------- 02372_ Lgt. Nuclear Core destroyed. 02378_ Com. Wheel destroyed. 02380_ G-47 Trooper destroyed. 02388_ Seismic Detector destroyed. 02390_ Critical hit (Burn: +37). 02394_ Hvy. Assault Rifle destroyed. 02396_ G-47 Trooper suffers critical hit (Burn). 02396_ G-47 Trooper destroyed. 02396_ Aluminum Leg destroyed. 02397_ Critical hit (Burn: +37). 02400_ K-01 Serf collects debris. 02411_ Hvy. Particle Gun destroyed. 02419_ K-01 Serf collects debris. 02423_ K-01 Serf cleans the Hadron Collector. 02425_ Acquired 112 matter. 02428_ K-01 Serf cleans the Hadron Collector. 02429_ K-01 Serf collects debris. 02433_ K-01 Serf cleans the Hadron Collector. 02434_ Critical hit (Burn: +37). Map ----- +----------------------------------------------------+ | ????????????????????????????????????????????????? | | ????????????????????????????????????????????????? | | ????????????????????????????????????????????????? | | ????????????????????????????????????????????????? | | ?????????????????o??????????????""??????????????? | | ????????????????o???????????????T"??????????????? | | ???????????????????????????"""??""??????????????? | | ???????????????????????????"""??????????????????? | | ???????????????????????????"""??????????????????? | | ????????????????????????????????????????????????? | | ????????????????????????????????????????????????? | | ????????????????????????????????????????????????? | | ????????????????#####?####??????????????????????? | | ????????????????# #??????????????????????? | | ????????????????# """ #??????????????????????? | | ????????????????# """ #??????????????????????? | | ????????????????# """ = #??????????????????????? | | ????????????????# #????????"?????????????? | | ????????????????# """ ""#???????"""????????????? | | ????????????????# """ T"#?????#?"""????????????? | | ????????????????# """ ""#???? ??"""????????????? | | ????????????????# #??? #???""????????????? | | ??????""????????#####+####?? #??"""????????????? | | """???T"# ##T###### ##### #??""?????????????? | | """???""# % ! ! ##?""?????????????? | | """?????# !*@*= +??"?????????????? | | ????????# ### ##l######????????????????? | | ????????# ??######=== #??????????????????? | | ????????# ** ????????# k"""#??????????????????? | | ????????# ** ?????????#*["""#??????????????????? | | ????????# **??????????#g """#??????????????????? | | ????????# ??????????#%*"""#?????##########???? | | ????????# = ???????????+[ #?????# #???? | | ????????# #???????????## "" ####### """ #???? | | ????????# ?????????????# "" "# + """ #???? | | ????????#??????????????# """## ## """ #???? | | ???????????????????????# """## ## #???? | | ???????????????????????# ## ## """ #???? | | ????????????????????########### ## """ #???? | | ????????????????????# ## ## """ #???? | | ????????????????????# ## ## #???? | | ????????????????????# # ###+######???? | | ????????????????????+ # #?????? | | ????????????????????# " + T #?????? | | ????????????????????# "" # #?????? | | ????????????????????# # ###+####?????? | | ????????????????????# ####### ???????? | | ????????????????????# #?????# ?????? | | ????????????????????#+########?????# ???? | | ????????????????????# ?????????????# ]] #??? | +----------------------------------------------------+ Best States ------------- Heat Dissipation 31 Energy Generation 14 Energy Capacity 160 Matter Stores 300 Matter Capacity 300 Sight Range 16 Terrain Scan Density 10 Armor Coverage 150 Propulsion Shielding 33 Evasion (%) 40 Recoil Reduction 2 Item Schematics ----------------- None Robot Schematics ------------------ None Fabricated ------------ Nothing Repaired ---------- Lgt. Treads | 2% | -10/Materials Lgt. Assault Rifle | 41% | -10/Materials Lgt. Treads | 17% | -10/Materials Lgt. Treads | 72% | -9/Materials Alien Tech Used ----------------- None Achievements -------------- None Challenges ------------ None Game ------ Seed FortressGodFragment Manual? 0 Play Time 00:22:48 Cumulative 224.9 hours Start 2025.05.24 @ 17:36:03 End 2025.05.24 @ 17:58:18 Sessions 1 Manual Loads 0 Difficulty Rogue Special Mode None Game No. 135 Rogue 135 Adventurer 0 Explorer 0 Win Type - Total 1 Types 1/0/0/0/0/0/0/0/0/0 Lore% 30 Gallery% 51 Achievement% 41 Wizard Run 0 Options --------- Layout 2 ASCII 0 Keyboard 0 Movement Mouse Keybinds 0 Fullscreen 1 Font 24/Smallcaps Map View 50x44 Zoom Use 0% Tactical HUD 1 Map Filters NONE Filters NONE Steam 1 RUN: d49d691b-f35e-4c69-84d1-d653635ead6b